bitfinex-derivatives/quotes_BTCF0:USTF0_20210705
["timestamp","ask_amount","ask_price","bid_price","bid_amount"]
[1625517224482,0.19214032,33931.0,33928.0,0.9162]
[1625517224697,0.19214032,33931.0,33930.0,0.34791196]
[1625517224778,0.175,33931.0,33930.0,0.34791196]
[1625517224925,0.175,33931.0,33929.0,0.0034924]
[1625517225024,0.24057544,33930.0,33928.0,1.26412073]
[1625517225126,0.057,33929.0,33928.0,1.26412073]
[1625517225225,0.116,33929.0,33928.0,1.26412073]
[1625517225325,0.175,33929.0,33928.0,1.26412073]
[1625517225588,0.19214282,33929.0,33928.0,1.26761317]
[1625517226379,0.19214282,33929.0,33928.0,1.26412073]
[1625517231847,0.19214282,33929.0,33928.0,0.9162]
[1625517232846,0.175,33929.0,33928.0,0.9162]
[1625517232997,0.19214214,33929.0,33928.0,0.9162]
[1625517233649,0.175,33929.0,33928.0,0.9162]
[1625517233800,0.19214222,33929.0,33928.0,0.9162]
[1625517237106,0.13514222,33929.0,33928.0,0.9162]
[1625517237206,0.13514222,33929.0,33928.0,0.91969225]
[1625517237308,0.46732882,33929.0,33928.0,0.91969225]
[1625517237759,0.13514222,33929.0,33928.0,0.91969225]
[1625517239511,0.13514222,33929.0,33928.0,2.1380432]
[1625517239813,0.13514615,33929.0,33928.0,2.1380432]
[1625517239911,5.28944615,33929.0,33928.0,0.91969225]
[1625517240111,5.34644615,33929.0,33928.0,0.91969225]
[1625517240262,5.28744615,33929.0,33928.0,0.91969225]
[1625517240361,5.28944615,33929.0,33928.0,0.91969225]
[1625517240463,5.34644615,33929.0,33928.0,0.91969225]
[1625517240663,5.34644615,33929.0,33928.0,0.9162]
[1625517240862,5.28744615,33929.0,33928.0,0.9162]
[1625517240964,5.34644615,33929.0,33928.0,0.9162]
[1625517241213,5.34644615,33929.0,33928.0,0.91969232]
[1625517242567,5.28944615,33929.0,33928.0,0.91969232]
[1625517243624,5.28944615,33929.0,33928.0,2.13853547]
[1625517246627,5.23044615,33929.0,33928.0,2.13853547]
[1625517247983,6.22767876,33929.0,33928.0,3.18341446]
[1625517248133,6.28667876,33929.0,33928.0,3.18341446]
[1625517249738,6.22767876,33929.0,33928.0,3.18341446]
[1625517250087,5.23044615,33929.0,33928.0,3.18341446]
[1625517251145,6.22770387,33929.0,33928.0,3.18341446]
[1625517251245,6.28670387,33929.0,33928.0,3.18341446]
[1625517252299,5.28944615,33929.0,33928.0,3.18341446]
[1625517252752,6.28681899,33929.0,33928.0,3.18341446]
[1625517255157,1.13251899,33929.0,33928.0,3.18341446]
[1625517255257,1.07351899,33929.0,33928.0,3.18341446]
[1625517255659,0.07614615,33929.0,33928.0,4.57730548]
[1625517256308,0.07614615,33929.0,33928.0,4.58841878]
[1625517259114,4.00914615,33929.0,33928.0,4.58841878]
[1625517259215,4.06814615,33929.0,33928.0,4.58841878]
[1625517259314,4.06814615,33929.0,33928.0,4.57730548]
[1625517259517,4.06814615,33929.0,33928.0,4.58842]
[1625517259815,4.00914615,33929.0,33928.0,4.58842]
[1625517259916,4.06814615,33929.0,33928.0,4.58842]
[1625517260016,4.00914615,33929.0,33928.0,4.58842]
[1625517260316,4.00914615,33929.0,33928.0,4.57730548]
[1625517260516,4.00914615,33929.0,33928.0,4.58841989]
[1625517260716,4.06814615,33929.0,33928.0,4.58841989]
[1625517261017,4.06814615,33929.0,33928.0,4.57730548]
[1625517261167,5.06689391,33929.0,33928.0,4.57730548]
[1625517263319,5.12389391,33929.0,33928.0,4.57730548]
[1625517263571,5.12389391,33929.0,33928.0,3.18341446]
[1625517263572,6.30466061,33929.0,33928.0,3.18341446]
[1625517264222,6.24566061,33929.0,33928.0,3.18341446]
[1625517264322,6.30466061,33929.0,33928.0,3.18341446]
[1625517264926,6.30466061,33929.0,33928.0,4.57795246]
[1625517265527,6.30466061,33929.0,33928.0,3.18341446]
[1625517266078,7.65402939,33929.0,33928.0,1.96457131]
[1625517267531,4.12514615,33929.0,33928.0,0.91969232]
[1625517267734,4.12514615,33929.0,33921.0,1.5468775]
[1625517267899,4.62514615,33929.0,33921.0,1.5468775]
[1625517267988,4.62514615,33929.0,33916.0,1.74334416]
[1625517267989,8.20065058,33929.0,33927.0,1.04599378]
[1625517268035,8.20065058,33929.0,33927.0,0.90699378]
[1625517268132,8.14165058,33929.0,33927.0,0.80389378]
[1625517268234,0.05206769,33928.0,33925.0,1.22032608]
[1625517268332,0.059,33927.0,33925.0,1.08792608]
[1625517268432,0.059,33927.0,33925.0,0.93582608]
[1625517268542,0.059,33927.0,33925.0,0.74242608]
[1625517268633,0.675,33927.0,33925.0,0.59332608]
[1625517268734,0.05209397,33926.0,33924.0,0.57839445]
[1625517268834,0.17009397,33926.0,33924.0,0.50569445]
[1625517268936,0.557,33925.0,33924.0,0.00569445]
[1625517269135,0.557,33925.0,33915.0,0.26160732]
[1625517269136,0.675,33925.0,33915.0,0.26160732]
[1625517269336,0.96230176,33916.0,33915.0,0.26160732]
[1625517269437,1.32259176,33916.0,33915.0,0.26160732]
[1625517269535,1.38159176,33916.0,33915.0,0.26160732]
[1625517269786,1.43368957,33916.0,33915.0,0.08720244]
[1625517269888,1.43368957,33916.0,33912.0,0.2616563]
[1625517270088,0.01715377,33915.0,33912.0,0.2616563]
[1625517270190,0.07615377,33915.0,33912.0,0.2616563]
[1625517270289,0.13515377,33915.0,33912.0,0.2616563]
[1625517270389,0.057,33914.0,33910.0,0.08703426]
[1625517270489,0.175,33914.0,33910.0,0.08703426]
[1625517270590,0.19215405,33914.0,33910.0,0.08703426]
[1625517270792,0.19215405,33914.0,33909.0,0.60923991]
[1625517270891,0.01715474,33913.0,33909.0,0.60923991]
[1625517270993,0.07615474,33913.0,33909.0,0.60923991]
[1625517271091,0.13515474,33913.0,33909.0,0.60923991]
[1625517271193,0.057,33912.0,33909.0,0.60923991]
[1625517271295,0.057,33912.0,33905.0,1.21763813]
[1625517271296,0.48115088,33910.0,33905.0,1.21763813]
[1625517271393,0.057,33909.0,33905.0,1.21763813]
[1625517271493,0.39912,33909.0,33905.0,1.21763813]
[1625517271595,0.45812,33909.0,33905.0,1.21763813]
[1625517272297,0.45812,33909.0,33905.0,0.9565]
[1625517273401,0.48115088,33906.0,33905.0,0.9565]
[1625517273501,0.59715088,33906.0,33905.0,0.9565]
[1625517275508,0.9319257,33906.0,33905.0,0.9565]
[1625517276458,1.18320685,33906.0,33905.0,0.9565]
[1625517277961,0.9319257,33906.0,33905.0,0.9565]
[1625517278564,1.18290724,33906.0,33905.0,0.9565]
[1625517279510,0.59715088,33906.0,33905.0,0.9565]
[1625517280315,0.84784766,33906.0,33905.0,0.9565]
[1625517280413,1.18183185,33906.0,33905.0,0.9565]
[1625517280613,1.12283185,33906.0,33905.0,0.9565]
[1625517280716,1.03921062,33906.0,33905.0,0.9565]
[1625517280967,1.09821062,33906.0,33905.0,0.9565]
[1625517281821,0.93113507,33906.0,33905.0,0.9565]
[1625517281918,0.99013507,33906.0,33905.0,0.9565]
[1625517282321,1.32342225,33906.0,33905.0,0.9565]
[1625517283621,1.32342225,33906.0,33894.0,0.0865668]
[1625517284024,0.58380423,33902.0,33894.0,0.0865668]
[1625517284124,0.057,33901.0,33894.0,0.0865668]
[1625517284226,0.116,33901.0,33894.0,0.0865668]
[1625517284326,0.175,33901.0,33893.0,0.2596469]
[1625517284526,0.175,33901.0,33893.0,0.3186469]
[1625517284779,0.175,33901.0,33893.0,0.059]
[1625517285583,4.30105088,33894.0,33893.0,0.059]
[1625517285681,4.35805088,33894.0,33893.0,0.059]
[1625517285780,4.41705088,33894.0,33893.0,0.059]
[1625517287786,4.41705088,33894.0,33892.0,0.09957544]
[1625517288937,4.41705088,33894.0,33890.0,1.06480553]
[1625517289186,4.41705088,33894.0,33890.0,0.9784]
[1625517289704,4.41705088,33894.0,33889.0,0.49975475]
[1625517289793,4.47605088,33894.0,33889.0,0.25917931]
[1625517290388,4.47605088,33894.0,33884.0,0.25909059]
[1625517291141,4.47605088,33894.0,33882.0,0.69090822]
[1625517291142,4.47605088,33894.0,33882.0,0.08635822]
[1625517291640,0.72172632,33883.0,33882.0,0.51813695]
[1625517292042,0.72172632,33883.0,33882.0,0.08630087]
[1625517292141,0.96184632,33883.0,33882.0,0.08630087]
[1625517292442,0.96184632,33883.0,33881.0,0.25890411]
[1625517292994,0.057,33882.0,33881.0,0.25890411]
[1625517293093,0.057,33882.0,33880.0,0.58578492]
[1625517293094,0.057,33882.0,33880.0,0.49946727]
[1625517293595,0.057,33882.0,33880.0,0.24057544]
[1625517293796,0.057,33882.0,33879.0,0.08629916]
[1625517294096,0.057,33882.0,33877.0,0.84427537]
[1625517294196,4.9229,33878.0,33877.0,0.84427537]
[1625517294400,4.9229,33878.0,33877.0,0.60369993]
[1625517294851,4.9229,33878.0,33876.0,0.25871157]
[1625517295400,4.9229,33878.0,33875.0,1.23654997]
[1625517295700,0.48115088,33876.0,33875.0,1.23654997]
[1625517295800,0.76461088,33876.0,33875.0,1.23654997]
[1625517296003,0.76461088,33876.0,33875.0,0.25874997]
[1625517296554,0.76461088,33876.0,33873.0,0.08619452]
[1625517297155,0.76461088,33876.0,33872.0,0.60335371]
[1625517297459,0.76461088,33876.0,33873.0,0.00349717]
[1625517297709,0.24057544,33874.0,33873.0,0.00349717]
[1625517297807,0.24057544,33874.0,33873.0,0.08618753]
[1625517298011,0.24057544,33874.0,33873.0,0.0896847]
[1625517298561,0.24057544,33874.0,33873.0,0.00349717]
[1625517299113,0.24057544,33874.0,33872.0,0.00349731]
[1625517299413,0.24057544,33874.0,33871.0,0.00349725]
[1625517299615,0.24057544,33874.0,33871.0,0.06249725]
[1625517299716,0.24057544,33874.0,33873.0,0.0034972]
[1625517299965,0.24057544,33874.0,33872.0,0.00349723]
[1625517300167,0.24057544,33874.0,33873.0,0.00349721]
[1625517300416,0.24057544,33874.0,33871.0,0.00349721]
[1625517300520,0.24057544,33874.0,33871.0,0.06249721]
[1625517301017,0.24057544,33874.0,33872.0,0.00349721]
[1625517301570,0.29957544,33874.0,33871.0,0.00349725]
[1625517301671,0.62102544,33874.0,33871.0,0.00349725]
[1625517301787,0.24057544,33872.0,33871.0,0.00349725]
[1625517301896,0.29757544,33872.0,33869.0,0.08608659]
[1625517302075,0.35657544,33872.0,33869.0,0.08608659]
[1625517302187,0.41557544,33872.0,33869.0,0.08608659]
[1625517302422,0.41557544,33872.0,33851.0,0.24057544]
[1625517302423,0.41557544,33872.0,33860.0,1.52433045]
[1625517302822,0.41557544,33872.0,33861.0,0.00349827]
[1625517303123,4.3186,33862.0,33861.0,0.00349827]
[1625517303325,0.29757544,33872.0,33861.0,0.06249827]
[1625517303424,0.29757544,33872.0,33861.0,0.12149827]
[1625517303524,0.24057544,33872.0,33861.0,0.12149827]
[1625517303624,0.057,33871.0,33862.0,0.00349793]
[1625517303724,0.48115088,33863.0,33862.0,0.00349793]
[1625517303823,0.48115088,33863.0,33862.0,0.12149793]
[1625517304023,0.48115088,33863.0,33862.0,0.32149793]
[1625517304526,0.24057544,33867.0,33862.0,0.32149793]
[1625517304629,0.24057544,33872.0,33862.0,0.32149793]
[1625517304926,0.24057544,33872.0,33863.0,0.00349751]
[1625517305027,0.24057544,33872.0,33869.0,3.6618]
[1625517305227,0.24057544,33872.0,33869.0,3.98217]
[1625517305326,0.24057544,33872.0,33869.0,4.04117]
[1625517305435,0.24057544,33872.0,33869.0,3.98217]
[1625517305529,0.24057544,33872.0,33870.0,0.00349749]
[1625517305727,0.24057544,33872.0,33871.0,0.72172632]
[1625517305828,0.29757544,33872.0,33871.0,0.72172632]
[1625517306083,0.29757544,33872.0,33869.0,3.98217]
[1625517306180,0.29757544,33872.0,33869.0,0.32037]
[1625517306333,0.35657544,33872.0,33869.0,0.32037]
[1625517306431,0.29757544,33872.0,33860.0,0.33102]
[1625517306533,0.29757544,33872.0,33860.0,0.059]
[1625517306834,0.29757544,33872.0,33861.0,0.00349784]
[1625517306932,0.29757544,33872.0,33861.0,0.06249784]
[1625517307030,0.35657544,33872.0,33861.0,0.06249784]
[1625517307134,4.2419,33869.0,33861.0,0.06249784]
[1625517307234,0.057,33868.0,33861.0,0.00349784]
[1625517307434,0.175,33868.0,33861.0,0.00349784]
[1625517307534,0.175,33868.0,33862.0,0.00349811]
[1625517307732,0.48115088,33863.0,33860.0,0.00349833]
[1625517308034,0.057,33862.0,33860.0,0.00349833]
[1625517308132,0.30722,33862.0,33860.0,0.00349833]
[1625517308333,0.25022,33862.0,33860.0,0.00349833]
[1625517309234,0.36622,33862.0,33860.0,0.00349833]
[1625517309336,0.30722,33862.0,33860.0,0.00349833]
[1625517309433,0.25022,33862.0,33860.0,0.00349833]
[1625517309633,0.25022,33862.0,33859.0,0.24057544]
[1625517309834,0.25022,33862.0,33859.0,0.29957544]
[1625517310084,0.30722,33862.0,33859.0,0.29957544]
[1625517310938,0.36622,33862.0,33859.0,0.29957544]
[1625517311038,0.30722,33862.0,33859.0,0.29957544]
[1625517311137,0.48115088,33863.0,33859.0,0.29957544]
[1625517311237,0.24057544,33869.0,33859.0,0.35857544]
[1625517311440,0.24057544,33869.0,33860.0,0.00349819]
[1625517311537,0.24057544,33869.0,33862.0,5.1621]
[1625517311739,0.29957544,33869.0,33862.0,5.1621]
[1625517311839,0.29957544,33869.0,33868.0,0.24057544]
[1625517311988,0.35857544,33869.0,33868.0,0.24057544]
[1625517312288,0.41557544,33869.0,33868.0,0.24057544]
[1625517314194,4.52527544,33869.0,33868.0,0.24057544]
[1625517314699,4.46627544,33869.0,33868.0,0.24057544]
[1625517314796,4.52527544,33869.0,33868.0,0.24057544]
[1625517315448,4.52527544,33869.0,33866.0,0.24057544]
[1625517315549,4.75540544,33869.0,33859.0,0.24057544]
[1625517315648,4.75540544,33869.0,33859.0,0.29957544]
[1625517315848,0.24057544,33860.0,33859.0,0.29957544]
[1625517316401,0.24057544,33860.0,33859.0,0.30307406]
[1625517316754,0.18157544,33860.0,33859.0,0.24407406]
[1625517316953,0.18157544,33860.0,33859.0,0.30307406]
[1625517317052,0.18157544,33860.0,33859.0,0.24407406]
[1625517317402,0.18157544,33860.0,33859.0,0.24057544]
[1625517317703,0.18157544,33860.0,33859.0,0.24407398]
[1625517317854,0.24057544,33864.0,33859.0,0.24407398]
[1625517318205,0.24057544,33864.0,33860.0,0.00349845]
[1625517319760,0.29957544,33864.0,33860.0,0.00349845]
[1625517319860,0.29957544,33864.0,33863.0,0.24057544]
[1625517320112,0.29957544,33864.0,33863.0,0.24407389]
[1625517320967,0.29957544,33864.0,33863.0,0.24057544]
[1625517321163,0.24057544,33864.0,33863.0,0.24057544]
[1625517321462,0.29957544,33864.0,33863.0,0.24407385]
[1625517321965,0.35657544,33864.0,33863.0,0.24057544]
[1625517322215,0.35657544,33864.0,33863.0,0.24407392]
[1625517322414,0.29957544,33864.0,33863.0,0.24407392]
[1625517322617,0.35657544,33864.0,33863.0,0.24407392]
[1625517324318,0.29957544,33864.0,33863.0,0.24407392]
[1625517324619,0.35657544,33864.0,33863.0,0.24407392]
[1625517325020,0.41557544,33864.0,33863.0,0.24407392]
[1625517326521,0.41557544,33864.0,33863.0,0.24057544]
[1625517326871,0.41557544,33864.0,33859.0,0.24057544]
[1625517326973,0.41557544,33864.0,33858.0,0.9063]
[1625517327874,0.72172632,33859.0,33858.0,0.9063]
[1625517327975,1.03195632,33859.0,33858.0,0.9063]
[1625517328076,1.14995632,33859.0,33858.0,0.9063]
[1625517329779,1.14995632,33859.0,33848.0,0.08625514]
[1625517329978,0.48115088,33849.0,33848.0,0.08625514]
[1625517330079,0.75839088,33849.0,33848.0,0.08625514]
[1625517330179,0.81739088,33849.0,33848.0,0.08625514]
[1625517330279,0.81739088,33849.0,33848.0,0.08975456]
[1625517330379,0.81739088,33849.0,33848.0,0.00349942]
[1625517331031,0.76039088,33849.0,33848.0,0.00349942]
[1625517331279,0.81739088,33849.0,33848.0,0.00349942]
[1625517331381,0.87639088,33849.0,33848.0,0.00349942]
[1625517332435,0.87639088,33849.0,33845.0,0.00349978]
[1625517333783,0.87639088,33849.0,33844.0,0.24057544]
[1625517333935,0.24057544,33845.0,33844.0,0.24057544]
[1625517334035,0.29757544,33845.0,33844.0,0.24057544]
[1625517334134,0.35657544,33845.0,33844.0,0.24057544]
[1625517334486,0.41557544,33845.0,33844.0,0.24057544]
[1625517335839,0.41557544,33845.0,33840.0,0.24057544]
[1625517335942,0.24057544,33841.0,33840.0,0.24057544]
[1625517336040,0.65750544,33841.0,33840.0,0.24057544]
[1625517336143,0.71650544,33841.0,33840.0,0.24057544]
[1625517338047,0.59850544,33841.0,33840.0,0.24057544]
[1625517338174,0.24057544,33841.0,33840.0,0.24057544]
[1625517338798,0.29957544,33841.0,33840.0,0.24057544]
[1625517338950,0.24057544,33841.0,33840.0,0.24057544]
[1625517339248,0.29957544,33841.0,33840.0,0.24057544]
[1625517339449,0.35657544,33841.0,33840.0,0.24057544]
[1625517339748,0.35657544,33841.0,33838.0,0.9314]
[1625517339949,0.24057544,33840.0,33838.0,0.9314]
[1625517340049,0.29957544,33840.0,33838.0,0.9314]
[1625517340351,0.24057544,33840.0,33838.0,0.9314]
[1625517340612,0.29957544,33840.0,33838.0,0.9314]
[1625517340802,0.24057544,33840.0,33838.0,0.9314]
[1625517341151,0.29957544,33840.0,33838.0,0.9314]
[1625517341652,0.35857544,33840.0,33838.0,0.9314]
[1625517342007,0.057,33839.0,33838.0,0.9314]
[1625517342104,0.175,33839.0,33838.0,0.9314]
[1625517346069,0.41557544,33839.0,33838.0,0.9314]
[1625517353084,0.66521544,33839.0,33838.0,0.9314]
[1625517356442,0.66521544,33839.0,33828.0,0.9551]
[1625517356942,3.8968,33837.0,33828.0,0.9551]
[1625517357046,0.057,33836.0,33828.0,0.9551]
[1625517357142,0.175,33836.0,33828.0,0.9551]
[1625517358194,0.48115088,33829.0,33828.0,0.9551]
[1625517358293,0.83990088,33829.0,33828.0,0.9551]
[1625517358392,0.89890088,33829.0,33828.0,0.9551]
[1625517358493,0.89890088,33829.0,33823.0,0.60462683]
[1625517358693,0.89890088,33829.0,33824.0,0.0863896]
[1625517358895,0.89890088,33829.0,33824.0,0.08989184]
[1625517359196,0.89890088,33829.0,33823.0,0.25909795]
[1625517359396,0.89890088,33829.0,33824.0,0.00350222]
[1625517359896,0.83990088,33829.0,33824.0,0.00350222]
[1625517359997,0.59715088,33829.0,33824.0,0.06250222]
[1625517360247,0.59715088,33829.0,33828.0,0.24057544]
[1625517360248,0.48115088,33829.0,33828.0,0.24057544]
[1625517360347,0.48115088,33829.0,33828.0,0.45527544]
[1625517360447,0.48115088,33829.0,33828.0,4.85787544]
[1625517360547,0.48115088,33829.0,33828.0,4.86137736]
[1625517360647,0.54015088,33829.0,33828.0,4.86137736]
[1625517360749,0.54015088,33829.0,33828.0,4.85787544]
[1625517361250,0.54015088,33829.0,33828.0,4.86137753]
[1625517361762,0.54015088,33829.0,33828.0,0.45877753]
[1625517362005,0.48115088,33829.0,33828.0,0.45877753]
[1625517362206,0.48115088,33829.0,33828.0,0.24407753]
[1625517365311,0.54015088,33829.0,33828.0,0.24407753]
[1625517365667,0.48115088,33829.0,33828.0,0.24407753]
[1625517366463,0.54015088,33829.0,33828.0,0.24407753]
[1625517366563,0.48115088,33829.0,33828.0,0.24407753]
[1625517366712,0.82454088,33829.0,33828.0,0.24407753]
[1625517367862,0.54015088,33829.0,33828.0,0.24407753]
[1625517368414,0.48115088,33829.0,33828.0,0.24407753]
[1625517368512,0.54015088,33829.0,33828.0,0.24407753]
[1625517370018,0.48115088,33829.0,33828.0,0.24407753]
[1625517370115,0.54015088,33829.0,33828.0,0.24407753]
[1625517370218,0.48115088,33829.0,33828.0,0.24407753]
[1625517372377,0.48115088,33829.0,33828.0,0.30307753]
[1625517372476,0.48115088,33829.0,33828.0,0.36207753]
[1625517372577,0.48115088,33829.0,33828.0,0.30307753]
[1625517372829,0.48115088,33829.0,33828.0,0.36207753]
[1625517372929,0.48115088,33829.0,33828.0,0.82195104]
[1625517373129,0.48115088,33829.0,33828.0,0.88095104]
[1625517373276,0.48115088,33829.0,33828.0,1.05408899]
[1625517373377,0.48115088,33829.0,33828.0,1.57309758]
[1625517373477,0.24057544,33839.0,33828.0,1.57309758]
[1625517373578,0.29957544,33839.0,33828.0,1.57309758]
[1625517373679,0.057,33842.0,33828.0,1.57309758]
[1625517373779,0.057,33843.0,33829.0,0.00350142]
[1625517373910,0.57952,33845.0,33829.0,0.12150142]
[1625517374080,0.01727679,33842.0,33830.0,0.01107967]
[1625517374180,0.01727679,33842.0,33830.0,0.12907967]
[1625517374298,0.01727601,33844.0,33831.0,0.00350107]
[1625517374381,0.01727601,33844.0,33841.0,0.72172632]
[1625517374482,0.01727601,33844.0,33841.0,0.99156632]
[1625517374580,0.24057544,33848.0,33841.0,0.99156632]
[1625517374680,0.24057544,33848.0,33841.0,0.93256632]
[1625517374781,0.29957544,33848.0,33841.0,0.93256632]
[1625517375032,0.29957544,33848.0,33842.0,0.00350096]
[1625517375033,0.01727556,33847.0,33842.0,0.00350096]
[1625517375132,0.07627556,33847.0,33842.0,0.00350096]
[1625517375236,0.07627556,33847.0,33842.0,0.06250096]
[1625517375332,0.01727556,33847.0,33842.0,0.06250096]
[1625517375536,0.01727494,33846.0,33843.0,0.00350081]
[1625517375735,0.24057544,33848.0,33843.0,0.00350081]
[1625517375836,0.24057544,33848.0,33843.0,0.06250081]
[1625517376033,0.24057544,33848.0,33843.0,0.059]
[1625517376335,0.24057544,33848.0,33847.0,0.24057544]
[1625517377136,0.24057544,33848.0,33847.0,0.24407601]
[1625517377336,0.24057544,33848.0,33847.0,0.30307601]
[1625517377438,0.24057544,33848.0,33847.0,0.29957544]
[1625517377536,0.24057544,33851.0,33847.0,0.24057544]
[1625517377638,0.24057544,33851.0,33847.0,0.29957544]
[1625517377736,0.24057544,33851.0,33847.0,0.35857544]
[1625517377943,0.24057544,33855.0,33848.0,0.2]
[1625517378040,0.24057544,33855.0,33848.0,0.51659]
[1625517378170,0.66230949,33858.0,33848.0,0.57559]
[1625517378296,0.42960534,33861.0,33848.0,0.57559]
[1625517378425,0.42960534,33861.0,33848.0,1.96339]
[1625517378458,0.42960534,33861.0,33860.0,0.72172632]
[1625517378575,0.42960534,33861.0,33860.0,1.02466632]
[1625517378651,0.41430534,33861.0,33860.0,1.02466632]
[1625517378759,0.01480534,33861.0,33860.0,1.08366632]
[1625517378866,0.46575417,33861.0,33860.0,1.08366632]
[1625517378975,0.44985417,33861.0,33860.0,1.08366632]
[1625517379066,0.44985417,33861.0,33860.0,1.02466632]
[1625517379244,0.44985417,33861.0,33860.0,0.96566632]
[1625517379455,6.00413118,33869.0,33860.0,0.96566632]
[1625517379552,4.513,33869.0,33860.0,0.96566632]
[1625517379748,0.059,33869.0,33860.0,0.96566632]
[1625517379842,0.057,33875.0,33860.0,1.02466632]
[1625517379948,0.175,33875.0,33860.0,1.02466632]
[1625517380044,0.175,33875.0,33860.0,1.08366632]
[1625517380393,0.175,33875.0,33874.0,0.48115088]
[1625517381845,1.50879333,33875.0,33874.0,0.48115088]
[1625517382295,0.175,33875.0,33874.0,0.48115088]
[1625517383196,1.51112609,33875.0,33874.0,0.48115088]
[1625517384450,0.175,33875.0,33874.0,0.48115088]
[1625517384700,0.118,33875.0,33874.0,0.48115088]
[1625517385005,0.175,33875.0,33874.0,0.48115088]
[1625517385612,3.02209969,33875.0,33874.0,0.48115088]
[1625517386550,3.02209969,33875.0,33863.0,0.24057544]
[1625517386750,3.34527969,33875.0,33863.0,0.24057544]
[1625517387207,1.33852586,33869.0,33863.0,0.24057544]
[1625517387306,0.34726,33868.0,33863.0,0.24057544]
[1625517387402,3.7061,33867.0,33863.0,0.24057544]
[1625517387506,0.057,33866.0,33863.0,0.24057544]
[1625517387601,0.116,33866.0,33863.0,0.24057544]
[1625517387703,0.175,33866.0,33863.0,0.24057544]
[1625517387954,0.118,33866.0,33863.0,0.24057544]
[1625517388455,0.24057544,33865.0,33863.0,0.24057544]
[1625517388556,0.057,33864.0,33863.0,0.24057544]
[1625517388656,0.116,33864.0,33863.0,0.24057544]
[1625517388957,0.175,33864.0,33863.0,0.24057544]
[1625517389408,0.118,33864.0,33863.0,0.24057544]
[1625517389509,0.175,33864.0,33863.0,0.24057544]
[1625517390413,0.118,33864.0,33863.0,0.24057544]
[1625517392120,0.175,33864.0,33863.0,0.24057544]
[1625517394077,1.51813783,33864.0,33863.0,0.24057544]
[1625517394177,1.45913783,33864.0,33863.0,0.18157544]
[1625517394542,1.69971327,33864.0,33859.0,0.24057544]
[1625517394642,1.75871327,33864.0,33852.0,1.19007544]
[1625517394750,0.5,33863.0,33852.0,1.19007544]
[1625517394842,0.057,33862.0,33852.0,1.19007544]
[1625517394945,0.116,33862.0,33852.0,0.24057544]
[1625517395043,1.34078855,33858.0,33852.0,0.24057544]
[1625517395146,0.557,33857.0,33838.0,1.38751111]
[1625517395253,0.059,33852.0,33838.0,1.38751111]
[1625517395437,0.059,33852.0,33834.0,0.9327]
[1625517395541,0.175,33852.0,33834.0,0.9327]
[1625517395836,0.175,33852.0,33834.0,0.9917]
[1625517395933,4.9795,33844.0,33834.0,0.9917]
[1625517396041,0.057,33843.0,33834.0,0.9917]
[1625517396234,0.116,33843.0,33834.0,0.9327]
[1625517396334,0.116,33843.0,33829.0,1.38765715]
[1625517396434,0.175,33843.0,33829.0,1.38765715]
[1625517396534,0.24057544,33839.0,33838.0,0.24057544]
[1625517396634,0.41557544,33839.0,33838.0,0.24057544]
[1625517398436,0.35657544,33839.0,33838.0,0.24057544]
[1625517398535,0.41557544,33839.0,33838.0,0.24057544]
[1625517400487,0.41557544,33839.0,33832.0,0.24057544]
[1625517400488,0.65615088,33839.0,33832.0,0.24057544]
[1625517400838,0.65615088,33839.0,33828.0,0.24057544]
[1625517400946,1.15615088,33839.0,33828.0,0.24057544]
[1625517401138,1.15615088,33839.0,33824.0,0.24057544]
[1625517401342,1.15615088,33839.0,33823.0,1.21425352]
[1625517401539,1.16820631,33835.0,33817.0,1.21424998]
[1625517401640,0.557,33834.0,33817.0,1.21424998]
[1625517401738,0.616,33834.0,33817.0,1.21424998]
[1625517401839,4.7196,33821.0,33817.0,1.21424998]
[1625517401939,0.33754,33820.0,33817.0,1.21424998]
[1625517402041,0.39654,33820.0,33815.0,1.21435626]
[1625517402263,0.39654,33820.0,33815.0,1.27335626]
[1625517402454,0.45554,33820.0,33815.0,1.27335626]
[1625517402465,0.45554,33820.0,33815.0,1.21435626]
[1625517402677,0.45554,33820.0,33813.0,1.38783572]
[1625517402678,0.96230176,33816.0,33814.0,1.2139042]
[1625517402953,1.02130176,33816.0,33814.0,1.2139042]
[1625517403349,1.02130176,33816.0,33812.0,1.38731909]
[1625517403452,1.02130176,33816.0,33809.0,1.61773397]
[1625517403453,1.52130176,33816.0,33809.0,0.057]
[1625517403542,1.58030176,33816.0,33806.0,0.24057544]
[1625517403844,1.58030176,33816.0,33806.0,0.29757544]
[1625517404542,0.48115088,33807.0,33806.0,0.29757544]
[1625517404643,0.54015088,33807.0,33806.0,0.24057544]
[1625517404743,0.78970088,33807.0,33806.0,0.24057544]
[1625517405258,0.78970088,33807.0,33801.0,0.057]
[1625517405346,0.84870088,33807.0,33798.0,1.21269059]
[1625517405447,0.5,33806.0,33798.0,1.21269059]
[1625517405649,0.618,33806.0,33798.0,1.21269059]
[1625517405846,0.618,33806.0,33794.0,1.38571261]
[1625517406351,0.118,33806.0,33794.0,1.38571261]
[1625517406448,0.118,33806.0,33790.0,0.057]
[1625517406551,0.118,33806.0,33805.0,0.24057544]
[1625517406649,0.059,33806.0,33805.0,0.24057544]
[1625517406750,0.059,33806.0,33805.0,0.51672544]
[1625517406850,0.059,33806.0,33805.0,0.27615]
[1625517407151,0.48115088,33807.0,33805.0,0.27615]
[1625517407249,0.059,33806.0,33805.0,0.27615]
[1625517407350,0.48115088,33807.0,33805.0,0.21715]
[1625517407651,0.98115088,33807.0,33805.0,0.21715]
[1625517407750,4.0595,33800.0,33798.0,0.24057544]
[1625517408050,4.3132,33800.0,33798.0,0.24057544]
[1625517408249,4.3132,33800.0,33786.0,0.057]
[1625517408349,4.3722,33800.0,33786.0,0.175]
[1625517408450,4.4312,33800.0,33786.0,0.175]
[1625517408551,4.4312,33800.0,33788.0,0.24057544]
[1625517408651,0.46975544,33789.0,33788.0,0.24057544]
[1625517408751,0.46975544,33789.0,33788.0,0.35857544]
[1625517409350,0.46975544,33789.0,33782.0,1.03613163]
[1625517409461,0.52875544,33789.0,33782.0,0.29723163]
[1625517409555,0.58775544,33789.0,33778.0,1.38185205]
[1625517409894,0.58775544,33789.0,33778.0,1.30195205]
[1625517410055,0.64675544,33789.0,33769.0,1.03650606]
[1625517410201,0.58775544,33789.0,33769.0,1.03650606]
[1625517410255,3.792,33776.0,33769.0,1.03650606]
[1625517410363,4.00519,33776.0,33769.0,1.03650606]
[1625517410466,4.06419,33776.0,33769.0,1.03650606]
[1625517410563,4.12319,33776.0,33762.0,0.9491]
[1625517410657,0.24057544,33771.0,33770.0,0.24057544]
[1625517410769,0.24057544,33774.0,33770.0,0.24057544]